fUST/lending_fUST_20260625
["ID","MTS","AMOUNT","RATE_DAILY","PERIOD"]
[426331448,1782317059000,196.282889,0.0001527,120]
[426331450,1782317108000,-307.06925774,0.0003,120]
[426331451,1782317108000,-231.4184925,0.0003,120]
[426331453,1782317108000,-366.82655016,0.0003,120]
[426331452,1782317108000,-193.5856996,0.0003,120]
[426331449,1782317108000,-450.55,0.00029,120]
[426331455,1782317140000,-159.024162,0.000108,2]
[426331454,1782317140000,-804.63180249,0.00010692,2]
[426331456,1782317231000,-151.0,0.00010692,13]
[426331457,1782317232000,-151.0,0.00010692,13]
[426331458,1782317235000,-151.0,0.00010692,13]
[426331463,1782317296000,-1746.02785355,0.00010692,2]
[426331462,1782317296000,-2160.58421822,0.00010692,13]
[426331464,1782317296000,-760.74051262,0.000108,2]
[426331466,1782317296000,-289.34335619,0.00013365,14]
[426331468,1782317296000,-2283.9631732,0.00014943,2]
[426331465,1782317296000,-3251.84844815,0.00012,2]
[426331470,1782317296000,-196.282889,0.0001527,2]
[426331471,1782317296000,-4500.52332509,0.00019999,2]
[426331472,1782317296000,-452.2537568,0.00019999,2]
[426331473,1782317296000,-500.0,0.00019999,2]
[426331475,1782317296000,-38512.03446718,0.0002,2]
[426331474,1782317296000,-169.448,0.00019999,2]
[426331469,1782317296000,-1000.0,0.00015023,2]
[426331467,1782317296000,-176.95,0.00014873,2]
[426331479,1782317309000,-173.061146,0.0002,2]
[426331477,1782317309000,-649.7645405,0.0002,2]
[426331478,1782317309000,-325.37756745,0.0002,2]
[426331484,1782317333000,-160.0,0.00021151,4]
[426331486,1782317348000,17.08412195,0.00019999,2]
[426331487,1782317348000,177.08412195,0.00019999,2]
[426331488,1782317354000,-305.8317561,0.00019999,2]
[426331490,1782317400000,185.46780134,0.00021151,2]
[426331504,1782317431000,-433.45811007,0.00021151,2]
[426331751,1782317438000,-1000.0,0.00024599,2]
[426331749,1782317438000,-1000.0,0.00024599,2]
[426331741,1782317438000,-700.0,0.00024548,2]
[426331748,1782317438000,-1000.0,0.00024599,2]
[426331739,1782317438000,-250.26197988,0.00023654,2]
[426331740,1782317438000,-390.64330921,0.00023654,2]
[426331738,1782317438000,-218.97923239,0.00023654,2]
[426331747,1782317438000,-1000.0,0.00024599,2]
[426331745,1782317438000,-1000.0,0.00024599,2]
[426331742,1782317438000,-1000.0,0.00024599,2]
[426331744,1782317438000,-1000.0,0.00024599,2]
[426331743,1782317438000,-1000.0,0.00024599,2]
[426331736,1782317438000,-180.45687248,0.00023217,2]
[426331732,1782317438000,-177.08412195,0.00021348,2]
[426331733,1782317438000,-300.0,0.00021348,2]
[426331730,1782317438000,-560.54981294,0.00021151,2]
[426331734,1782317438000,-177.79300137,0.00022471,2]
[426331735,1782317438000,-319.70737506,0.00022471,2]
[426331731,1782317438000,-185.46780134,0.00021151,7]
[426331729,1782317438000,-450.55,0.00021151,2]
[426331752,1782317438000,-1000.0,0.00024599,2]
[426331746,1782317438000,-1000.0,0.00024599,2]
[426331750,1782317438000,-1000.0,0.00024599,2]
[426331737,1782317438000,-312.53770475,0.00023349,2]
[426331753,1782317438000,-1000.0,0.00024599,2]
[426331761,1782317438000,-151.13787571,0.00024684,2]
[426331775,1782317438000,-500.0,0.00024849,2]
[426331776,1782317438000,-500.0,0.00024849,2]
[426331774,1782317438000,-500.0,0.00024849,2]
[426331772,1782317438000,-500.0,0.00024849,2]
[426331773,1782317438000,-500.0,0.00024849,2]
[426331770,1782317438000,-500.0,0.00024849,2]
[426331769,1782317438000,-500.0,0.00024849,2]
[426331767,1782317438000,-500.0,0.00024849,2]
[426331764,1782317438000,-518.20445619,0.00024699,2]
[426331765,1782317438000,-500.0,0.00024798,2]
[426331771,1782317438000,-500.0,0.00024849,2]
[426331768,1782317438000,-614.95031047,0.00024849,2]
[426331762,1782317438000,-676.2196432,0.00024697,2]
[426331763,1782317438000,-990.4788195,0.00024697,2]
[426331757,1782317438000,-1000.0,0.00024599,2]
[426331759,1782317438000,-267.99231379,0.00024599,2]
[426331756,1782317438000,-1000.0,0.00024599,2]
[426331758,1782317438000,-1000.0,0.00024599,2]
[426331760,1782317438000,-572.59276827,0.0002465,2]
[426331755,1782317438000,-1000.0,0.00024599,2]
[426331766,1782317438000,-500.0,0.00024849,2]
[426331754,1782317438000,-1000.0,0.00024599,2]
[426331820,1782317439000,-197.97194916,0.0002525,2]
[426331815,1782317439000,-500.0,0.0002525,2]
[426331817,1782317439000,-500.0,0.0002525,2]
[426331816,1782317439000,-151.5,0.0002525,2]
[426331814,1782317439000,-500.0,0.0002525,2]
[426331812,1782317439000,-234.55804282,0.0002525,2]
[426331813,1782317439000,-500.0,0.0002525,2]
[426331810,1782317439000,-151.5,0.0002525,2]
[426331809,1782317439000,-151.5,0.0002525,2]
[426331821,1782317439000,-500.0,0.00025346,2]
[426331818,1782317439000,-151.5,0.0002525,2]
[426331808,1782317439000,-151.5,0.0002525,2]
[426331825,1782317439000,-750.0,0.00025439,2]
[426331833,1782317439000,-174.811882,0.00025739,2]
[426331822,1782317439000,-257.18501057,0.00025379,7]
[426331819,1782317439000,-196.33478988,0.0002525,2]
[426331824,1782317439000,-240.0,0.00025439,2]
[426331830,1782317439000,-293.28564857,0.00025463,2]
[426331829,1782317439000,-200.0,0.00025444,2]
[426331827,1782317439000,-280.0,0.00025439,2]
[426331832,1782317439000,-333.93906519,0.00025622,7]
[426331828,1782317439000,-150.0,0.00025444,2]
[426331831,1782317439000,-500.0,0.0002562,2]
[426331811,1782317439000,-151.5,0.0002525,2]
[426331837,1782317439000,-159.16514185,0.00025799,2]
[426331836,1782317439000,-156.0,0.00025795,3]
[426331834,1782317439000,-151.13787571,0.0002578,2]
[426331823,1782317439000,-380.0,0.00025439,2]
[426331807,1782317439000,-151.5,0.0002525,2]
[426331805,1782317439000,-600.0,0.00025192,10]
[426331800,1782317439000,-8469.76998441,0.00025,2]
[426331844,1782317439000,-314.44941317,0.00026168,2]
[426331780,1782317439000,-500.0,0.00024849,2]
[426331781,1782317439000,-332.71671067,0.00024849,2]
[426331777,1782317439000,-500.0,0.00024849,2]
[426331778,1782317439000,-500.0,0.00024849,2]
[426331779,1782317439000,-500.0,0.00024849,2]
[426331782,1782317439000,-500.0,0.00024849,2]
[426331784,1782317439000,-173.08338594,0.00024849,2]
[426331783,1782317439000,-500.0,0.00024849,2]
[426331787,1782317439000,-151.0,0.0002485,3]
[426331794,1782317439000,-155.35028961,0.0002485,3]
[426331790,1782317439000,-151.0,0.0002485,3]
[426331788,1782317439000,-151.0,0.0002485,3]
[426331802,1782317439000,-157.0,0.00025,3]
[426331792,1782317439000,-151.0,0.0002485,3]
[426331793,1782317439000,-157.0,0.0002485,3]
[426331791,1782317439000,-151.0,0.0002485,3]
[426331785,1782317439000,-292.0,0.0002485,3]
[426331789,1782317439000,-151.0,0.0002485,3]
[426331804,1782317439000,-534.79555513,0.00025073,2]
[426331806,1782317439000,-151.13787571,0.00025232,2]
[426331795,1782317439000,-151.0,0.0002485,3]
[426331797,1782317439000,-333.93906519,0.0002489,7]
[426331796,1782317439000,-166.0,0.0002485,3]
[426331799,1782317439000,-7730.1072418,0.00024998,2]
[426331803,1782317439000,-500.0,0.00025072,2]
[426331798,1782317439000,-174.75860196,0.00024899,2]
[426331801,1782317439000,-166.0,0.00025,3]
[426331786,1782317439000,-151.0,0.0002485,3]
[426331838,1782317439000,-500.0,0.00025894,2]
[426331845,1782317439000,-797.0,0.000263,2]
[426331839,1782317439000,-1239.81106041,0.00026,2]
[426331875,1782317439000,-174.811882,0.0002935,2]
[426331872,1782317439000,-1000.0,0.00028548,5]
[426331874,1782317439000,-151.13787571,0.00029068,2]
[426331873,1782317439000,-151.0,0.00029,4]
[426331881,1782317439000,-166.44316853,0.0003,120]
[426331876,1782317439000,-151.13787571,0.00029616,2]
[426331880,1782317439000,-276.44130537,0.0003,120]
[426331877,1782317439000,-76.53408588,0.0003,120]
[426331879,1782317439000,-238.46489561,0.0003,120]
[426331878,1782317439000,-184.73359834,0.0003,120]
[426331883,1782317439000,-184.24155467,0.0003,120]
[426331884,1782317439000,-185.13479402,0.0003,120]
[426331886,1782317439000,-151.13787571,0.00030164,2]
[426331882,1782317439000,-8001.64646979,0.0003,2]
[426331892,1782317439000,-184.73359834,0.000309,120]
[426331891,1782317439000,-443.36063604,0.000309,120]
[426331893,1782317439000,-276.44130537,0.000309,120]
[426331887,1782317439000,-864.0,0.00030482,30]
[426331890,1782317439000,-500.9259428,0.00030823,2]
[426331889,1782317439000,-406.9495456,0.00030823,2]
[426331894,1782317439000,-184.24155467,0.000309,120]
[426331896,1782317439000,-193.58569962,0.000309,120]
[426331895,1782317439000,-185.13479402,0.000309,120]
[426331899,1782317439000,-412.19423404,0.00031236,2]
[426331897,1782317439000,-450.0,0.00031,120]
[426331898,1782317439000,-174.811882,0.00031156,2]
[426331900,1782317439000,-151.13787571,0.0003126,2]
[426331840,1782317439000,-257.18501057,0.00026105,7]
[426331888,1782317439000,-151.13787571,0.00030712,2]
[426331870,1782317439000,-314.56548353,0.00028281,2]
[426331885,1782317439000,-193.58569962,0.0003,120]
[426331864,1782317439000,-160.0,0.00028,3]
[426331871,1782317439000,-151.13787571,0.0002852,2]
[426331842,1782317439000,-151.0,0.00026136,4]
[426331843,1782317439000,-160.17682648,0.00026149,7]
[426331841,1782317439000,-407.05498051,0.00026134,7]
[426331846,1782317439000,-151.13787571,0.00026328,2]
[426331857,1782317439000,-174.811882,0.00027544,2]
[426331856,1782317439000,-151.13787571,0.00027424,2]
[426331847,1782317439000,-333.93906519,0.00026354,7]
[426331854,1782317439000,-257.1850106,0.00027071,7]
[426331852,1782317439000,-151.13787571,0.00026876,2]
[426331850,1782317439000,-160.0,0.00026484,2]
[426331848,1782317439000,-160.0,0.00026484,2]
[426331851,1782317439000,-160.0,0.00026484,2]
[426331853,1782317439000,-178.98281817,0.0002695,2]
[426331835,1782317439000,-166.0,0.00025795,3]
[426331863,1782317439000,-199.920032,0.00027973,7]
[426331849,1782317439000,-160.0,0.00026484,2]
[426331859,1782317439000,-151.13787571,0.00027972,2]
[426331865,1782317439000,-151.0,0.00028,7]
[426331858,1782317439000,-720.0,0.00027711,30]
[426331868,1782317439000,-523.340683,0.00028,2]
[426331869,1782317439000,-523.340683,0.00028,2]
[426331867,1782317439000,-523.340683,0.00028,2]
[426331855,1782317439000,-333.93906519,0.0002733,7]
[426331866,1782317439000,-523.340683,0.00028,2]
[426331860,1782317439000,-199.920032,0.00027973,7]
[426331861,1782317439000,-199.920032,0.00027973,7]
[426331862,1782317439000,-199.920032,0.00027973,7]
[426331940,1782317440000,-250.0,0.00037966,48]
[426331947,1782317440000,-199.920032,0.00038,7]
[426331944,1782317440000,-160.0,0.00038,120]
[426331943,1782317440000,-40000.0,0.00038,2]
[426331939,1782317440000,-10000.0,0.000378,4]
[426331931,1782317440000,-250.0,0.00036362,40]
[426331937,1782317440000,-1439.23149633,0.00037538,2]
[426331945,1782317440000,-199.920032,0.00038,7]
[426331938,1782317440000,-250.0,0.0003761,46]
[426331936,1782317440000,-250.0,0.00037098,43]
[426331942,1782317440000,-160.0,0.00038,120]
[426331932,1782317440000,-1000.0,0.00036884,30]
[426331941,1782317440000,-61294.92999905,0.00038,120]
[426331946,1782317440000,-199.920032,0.00038,7]
[426331956,1782317440000,-1272.272546,0.00038,7]
[426331948,1782317440000,-199.920032,0.00038,7]
[426331960,1782317440000,-151.0,0.00038,7]
[426331959,1782317440000,-151.0,0.00038,7]
[426331950,1782317440000,-523.340683,0.00038,2]
[426331955,1782317440000,-1272.272546,0.00038,7]
[426331952,1782317440000,-523.340683,0.00038,2]
[426331957,1782317440000,-1272.272546,0.00038,7]
[426331958,1782317440000,-1272.272546,0.00038,7]
[426331953,1782317440000,-523.340683,0.00038,2]
[426331951,1782317440000,-523.340683,0.00038,2]
[426331954,1782317440000,-169.0,0.00038,7]
[426331961,1782317440000,-151.0,0.00038,7]
[426331963,1782317440000,-151.0,0.00038,7]
[426331949,1782317440000,-246.0,0.00038,7]
[426331933,1782317440000,-244.0,0.00036884,30]
[426331908,1782317440000,-185.13479402,0.000318,120]
[426331934,1782317440000,-187.78667641,0.00036899,2]
[426331966,1782317440000,-187.78667639,0.0003825,2]
[426331906,1782317440000,-276.44130537,0.000318,120]
[426331907,1782317440000,-184.24155467,0.000318,120]
[426331903,1782317440000,-1108.20543626,0.00031415,4]
[426331904,1782317440000,-443.36063604,0.000318,120]
[426331905,1782317440000,-184.73359834,0.000318,120]
[426331902,1782317440000,-558.66829875,0.0003128,2]
[426331909,1782317440000,-193.58569962,0.000318,120]
[426331910,1782317440000,-151.1378758,0.00031808,2]
[426331914,1782317440000,-1272.272546,0.00031919,7]
[426331913,1782317440000,-1272.272546,0.00031919,7]
[426331917,1782317440000,-450.005612,0.00032,120]
[426331922,1782317440000,-193.58569962,0.000328,120]
[426331935,1782317440000,-4000.27,0.00037,120]
[426331916,1782317440000,-1272.272546,0.00031919,7]
[426331920,1782317440000,-184.24155467,0.000328,120]
[426331912,1782317440000,-1272.272546,0.00031919,7]
[426331911,1782317440000,-151.0,0.00031919,7]
[426331918,1782317440000,-443.36063604,0.000328,120]
[426331919,1782317440000,-276.44130537,0.000328,120]
[426331924,1782317440000,-1000.0,0.0003353,30]
[426331926,1782317440000,-443.36063604,0.000338,120]
[426331923,1782317440000,-500.0,0.00032877,10]
[426331927,1782317440000,-276.44130537,0.000338,120]
[426331928,1782317440000,-184.24155467,0.000338,120]
[426331929,1782317440000,-185.13479402,0.000338,120]
[426331925,1782317440000,-250.0,0.00033781,32]
[426331930,1782317440000,-250.0,0.00035304,38]
[426331921,1782317440000,-185.13479402,0.000328,120]
[426331964,1782317440000,-151.0,0.00038,7]
[426331997,1782317440000,-151.0,0.000388,120]
[426331967,1782317440000,-153.41,0.000383,120]
[426332010,1782317440000,-316.901975,0.000388,28]
[426332007,1782317440000,-151.0,0.000388,120]
[426331998,1782317440000,-151.0,0.000388,120]
[426332009,1782317440000,-316.901975,0.000388,28]
[426332011,1782317440000,-316.901975,0.000388,28]
[426332001,1782317440000,-168.670115,0.000388,120]
[426332000,1782317440000,-151.0,0.000388,120]
[426332004,1782317440000,-151.0,0.000388,120]
[426332002,1782317440000,-168.670115,0.000388,120]
[426332006,1782317440000,-151.0,0.000388,120]
[426332005,1782317440000,-168.670115,0.000388,120]
[426332003,1782317440000,-168.670115,0.000388,120]
[426332012,1782317440000,-316.901975,0.000388,28]
[426332008,1782317440000,-151.0,0.000388,120]
[426332014,1782317440000,-10000.0,0.000389,2]
[426332015,1782317440000,-1584.0,0.00038904,30]
[426332016,1782317440000,-16711.33798255,0.00039,2]
[426332018,1782317440000,-384.68244485,0.00039,60]
[426332023,1782317440000,-160.0,0.000391,120]
[426332017,1782317440000,-160.0,0.00039,120]
[426332020,1782317440000,-384.6824448,0.00039,60]
[426332019,1782317440000,-384.6824448,0.00039,60]
[426332021,1782317440000,-10142.02503271,0.00039,60]
[426332025,1782317440000,-384.6824448,0.00039256,60]
[426332024,1782317440000,-384.6824448,0.00039144,60]
[426332026,1782317440000,-153.41,0.000393,120]
[426332027,1782317440000,-384.6824448,0.00039367,60]
[426331969,1782317440000,-250.0,0.00038385,51]
[426332013,1782317440000,-151.0,0.000388,120]
[426331999,1782317440000,-151.0,0.000388,120]
[426332022,1782317440000,-384.6824448,0.00039033,60]
[426331990,1782317440000,-523.340683,0.000388,2]
[426331971,1782317440000,-811.93498786,0.00038394,7]
[426331970,1782317440000,-347.97213766,0.00038394,7]
[426331968,1782317440000,-1584.0,0.00038356,30]
[426331972,1782317440000,-250.0,0.00038504,51]
[426331962,1782317440000,-151.0,0.00038,7]
[426331973,1782317440000,-250.0,0.00038587,52]
[426331965,1782317440000,-250.0,0.00038213,49]
[426331975,1782317440000,-604.4,0.000386,2]
[426331984,1782317440000,-199.920032,0.000388,120]
[426331995,1782317440000,-1272.272546,0.000388,120]
[426331977,1782317440000,-155.94,0.00038685,53]
[426331976,1782317440000,-250.0,0.00038645,53]
[426331978,1782317440000,-160.0,0.0003879,30]
[426331983,1782317440000,-151.0,0.000388,120]
[426331974,1782317440000,-1000.0,0.000386,60]
[426331981,1782317440000,-153.41,0.000388,120]
[426331993,1782317440000,-1272.272546,0.000388,120]
[426331982,1782317440000,-151.0,0.000388,120]
[426331992,1782317440000,-1272.272546,0.000388,120]
[426331991,1782317440000,-523.340683,0.000388,2]
[426331996,1782317440000,-698.93216161,0.000388,2]
[426331994,1782317440000,-1272.272546,0.000388,120]
[426332028,1782317440000,-1584.0,0.00039452,30]
[426331986,1782317440000,-199.920032,0.000388,120]
[426331987,1782317440000,-199.920032,0.000388,120]
[426331988,1782317440000,-523.340683,0.000388,2]
[426331985,1782317440000,-199.920032,0.000388,120]
[426331980,1782317440000,-154325.4134153,0.000388,60]
[426331979,1782317440000,-160.0,0.0003879,30]
[426331989,1782317440000,-523.340683,0.000388,2]
[426332033,1782317441000,-151.0,0.000388,120]
[426332031,1782317441000,-236127.12728515,0.000396,30]
[426332030,1782317441000,-384.6824448,0.00039589,60]
[426332032,1782317441000,-4173.38516679,0.000396,30]
[426332034,1782317441000,-2779.11915492,0.000396,30]
[426332029,1782317441000,-384.6824448,0.00039478,60]
[426332049,1782317443000,-1620.70001649,0.00025798,2]
[426332050,1782317443000,-1.54384983,0.00025798,2]
[426332051,1782317443000,-8377.75613368,0.00025798,2]
[426332052,1782317443000,-904.049758,0.000258,2]
[426332053,1782317443000,-151.0,0.00038,7]
[426332055,1782317443000,-151.0,0.000388,120]
[426332054,1782317443000,-151.0,0.00038,7]
[426332057,1782317443000,-31759.44221462,0.000396,30]
[426332056,1782317443000,-151.0,0.000388,120]
[426332079,1782317446000,-80.96395635,0.000396,30]
[426332078,1782317446000,-18786.68379719,0.000396,30]
[426332077,1782317446000,-5134.20645751,0.000396,30]
[426332080,1782317447000,-3846.85379362,0.000396,30]
[426332081,1782317461000,-698.0,0.000263,2]
[426332082,1782317530000,-2779.11915491,0.000198,13]
[426332083,1782317531000,-151.0,0.000198,13]
[426332084,1782317726000,417.15472785,0.00025,30]
[426332085,1782317743000,417.15472785,0.00025,30]
[426332094,1782317873000,-1490.88765857,0.0001763,2]
[426332096,1782317952000,-412.59276827,0.0001763,2]
[426332095,1782317952000,-160.0,0.0001763,2]
[426332107,1782318304000,198.21,0.00015068,2]
[426332108,1782318337000,-1056.40927118,0.00015068,2]
[426332110,1782318361000,-1494.0435537,0.00015068,2]
[426332114,1782318431000,-198.21,0.00015068,2]
[426332115,1782318431000,-156.03,0.00017808,2]
[426332116,1782318431000,-200.0,0.0002,2]
[426332117,1782318431000,-39.83526227,0.00021,2]
[426332190,1782318632000,-200.0,0.00023,2]
[426332192,1782318632000,-200.0,0.00024,2]
[426332194,1782318632000,-202.98262762,0.00025,2]
[426332197,1782318632000,-160.0,0.00029534,2]
[426332184,1782318632000,-160.16473773,0.00021,2]
[426332186,1782318632000,-160.0,0.00021178,4]
[426332211,1782318632000,-438.23496928,0.000313,2]
[426332188,1782318632000,-200.0,0.00022,2]
[426332201,1782318632000,-160.0,0.00029534,2]
[426332203,1782318632000,-439.11754577,0.00029534,2]
[426332205,1782318632000,-723.07716211,0.0003,120]
[426332207,1782318632000,-723.07716211,0.000309,120]
[426332199,1782318632000,-160.0,0.00029534,2]
[426332209,1782318632000,-246.2797174,0.000313,2]
[426332237,1782318632000,-170.256,0.0003879,52]
[426332215,1782318632000,-284.95778666,0.000318,120]
[426332239,1782318632000,-963.13081316,0.00038791,2]
[426332235,1782318632000,-173.061146,0.000387,10]
[426332233,1782318632000,-261.25,0.000383,120]
[426332225,1782318632000,-300.0,0.00033799,3]
[426332231,1782318632000,-717.97047179,0.0003783,2]
[426332228,1782318632000,-723.07716211,0.000338,120]
[426332219,1782318632000,-105.0117199,0.00031865,30]
[426332230,1782318632000,-192.15,0.00037604,2]
[426332224,1782318632000,-723.07716211,0.000328,120]
[426332222,1782318632000,-894.9882801,0.00031865,30]
[426332213,1782318632000,-13.48531332,0.000313,2]
[426332217,1782318632000,-438.11937545,0.000318,120]
[426332241,1782318632000,-569.58414248,0.00038791,2]
[426332327,1782318638000,-709.0318468,0.00038694,2]
[426332344,1782318640000,-1435.96511704,0.00038694,2]
[426332371,1782318643000,-261.25,0.000393,120]
[426332367,1782318643000,-238.74771277,0.000391,2]
[426332365,1782318643000,-160.0,0.00039,30]
[426332364,1782318643000,-175000.0,0.00039,30]
[426332361,1782318643000,-261.25,0.000388,120]
[426332357,1782318643000,-2732.21127556,0.00038694,2]
[426332362,1782318643000,-187.78667639,0.000389,2]
[426332360,1782318643000,-1856.4874744,0.00038794,2]
[426332358,1782318643000,-21876.01546636,0.00038791,2]
[426332359,1782318643000,-358.98523589,0.00038791,2]
[426332356,1782318643000,-680.9524463,0.00037925,2]
[426332363,1782318643000,-604.4,0.00039,2]
[426332369,1782318643000,-179769.15524461,0.0003929,30]
[426332370,1782318643000,-1584.0,0.0003929,30]
[426332372,1782318643000,-253.52158,0.00039301,28]
[426332382,1782318643000,-219.675062,0.00039301,120]
[426332381,1782318643000,-151.0,0.00039301,120]
[426332383,1782318643000,-60.29433882,0.00039301,120]
[426332380,1782318643000,-219.675062,0.00039301,120]
[426332366,1782318643000,-465.71,0.00039,120]
[426332379,1782318643000,-151.0,0.00039301,120]
[426332378,1782318643000,-219.675062,0.00039301,120]
[426332375,1782318643000,-253.52158,0.00039301,28]
[426332368,1782318643000,-71799.84475465,0.000392,30]
[426332376,1782318643000,-151.0,0.00039301,120]
[426332373,1782318643000,-253.52158,0.00039301,28]
[426332377,1782318643000,-151.0,0.00039301,120]
[426332374,1782318643000,-253.52158,0.00039301,28]
[426332395,1782318646000,-132.63111642,0.00039301,120]
[426332394,1782318646000,-5497.7,0.00039,120]
[426332396,1782318647000,-26.74960676,0.00039301,120]
[426332398,1782318647000,-14898.08390953,0.00039301,2]
[426332399,1782318647000,-615.85413851,0.00039301,2]
[426332397,1782318647000,-152.48099,0.00039301,120]
[426332409,1782318748000,155.0,0.0002,2]
[426332410,1782318749000,155.0,0.00021,2]
[426332411,1782318751000,155.0,0.00022,2]
[426332412,1782318767000,-155.0,0.00023,2]
[426332418,1782319057000,-177.9857696,0.00024,2]
[426332416,1782319057000,-179.09576738,0.00023582,2]
[426332417,1782319057000,-168.0,0.00024,2]
[426332421,1782319300000,450.55,0.0002755,120]
[426332424,1782319544000,-457.21517562,0.00024899,2]
[426332423,1782319544000,-147.0142304,0.00024,2]
[426332422,1782319544000,-358.4433682,0.0002376,2]
[426332425,1782319567000,417.15472785,0.00025,30]
[426332426,1782319591000,-211.52930093,0.00024899,2]
[426332429,1782319627000,-484.27142797,0.00024899,2]
[426332428,1782319627000,-331.25552345,0.00024899,2]
[426332556,1782319832000,-401.72231369,0.00038797,15]
[426332543,1782319832000,-203.99773421,0.00038726,60]
[426332558,1782319832000,-1907.93870043,0.00038797,15]
[426332518,1782319832000,-629.06967937,0.00038,30]
[426332512,1782319832000,-322.005,0.00035748,120]
[426332516,1782319832000,-1944.58947904,0.00037021,2]
[426332522,1782319832000,-392.61953808,0.00038122,2]
[426332531,1782319832000,-212.91296917,0.00038694,2]
[426332514,1782319832000,-300.0,0.0003702,3]
[426332520,1782319832000,-182.71892529,0.00038,7]
[426332533,1782319832000,-129.00392086,0.00038699,2]
[426332510,1782319832000,-1000.0,0.00035576,30]
[426332529,1782319832000,-109.45941212,0.00038694,2]
[426332502,1782319832000,-230.0,0.00026,2]
[426332525,1782319832000,-219.33098517,0.000382,2]
[426332523,1782319832000,-563.11854371,0.00038178,7]
[426332539,1782319832000,-463.65044489,0.00038723,2]
[426332508,1782319832000,-250.0,0.000329,2]
[426332504,1782319832000,-600.0,0.00026168,2]
[426332506,1782319832000,-420.0,0.00026168,2]
[426332492,1782319832000,-800.0,0.00024899,2]
[426332486,1782319832000,-500.0,0.00024899,2]
[426332489,1782319832000,-15.72857203,0.00024899,2]
[426332500,1782319832000,-1000.0,0.00025443,2]
[426332498,1782319832000,-1000.0,0.00025443,2]
[426332494,1782319832000,-333.93906519,0.000252,7]
[426332496,1782319832000,-850.0,0.00025442,2]
[426332527,1782319832000,-245.1,0.000383,120]
[426332536,1782319832000,-270.06408929,0.00038699,2]
[426332581,1782319832000,-500.0,0.00038798,2]
[426332548,1782319832000,-175.477,0.0003879,52]
[426332601,1782319832000,-30.28182634,0.00038798,2]
[426332599,1782319832000,-469.71817366,0.00038798,2]
[426332594,1782319832000,-500.0,0.00038798,2]
[426332592,1782319832000,-500.0,0.00038798,2]
[426332590,1782319832000,-500.0,0.00038798,2]
[426332588,1782319832000,-500.0,0.00038798,2]
[426332586,1782319832000,-500.0,0.00038798,2]
[426332585,1782319832000,-500.0,0.00038798,2]
[426332583,1782319832000,-500.0,0.00038798,2]
[426332577,1782319832000,-500.0,0.00038797,60]
[426332573,1782319832000,-165.66,0.00038797,2]
[426332571,1782319832000,-500.0,0.00038797,2]
[426332575,1782319832000,-279.75657701,0.00038797,60]
[426332604,1782319832000,-395.69690638,0.00038798,2]
[426332567,1782319832000,-1907.93870043,0.00038797,15]
[426332579,1782319832000,-500.0,0.00038798,2]
[426332546,1782319832000,-177.08412195,0.0003879,60]
[426332552,1782319832000,-127.80113138,0.00038797,15]
[426332537,1782319832000,-257.58358049,0.00038723,2]
[426332545,1782319832000,-160.0,0.00038781,2]
[426332550,1782319832000,-500.0,0.0003879,60]
[426332541,1782319832000,-824.26745758,0.00038723,2]
[426332562,1782319832000,-1907.93870043,0.00038797,15]
[426332566,1782319832000,-1907.93870043,0.00038797,15]